bitfinex-derivatives/quotes_BTCF0:USTF0_20241029
["timestamp","ask_amount","ask_price","bid_price","bid_amount"]
[1730163737256,0.003,69938.0,69937.0,0.20170643]
[1730163737758,0.003,69938.0,69937.0,0.26290643]
[1730163738152,0.12204,69946.0,69937.0,0.26290643]
[1730163738354,0.12204,69946.0,69945.0,0.20169843]
[1730163739163,0.36188,69955.0,69948.0,0.064368]
[1730163739365,0.3608,69955.0,69954.0,0.13732743]
[1730163739660,0.3608,69955.0,69954.0,0.20169043]
[1730163740255,0.12204,69962.0,69954.0,0.13732743]
[1730163740449,0.18124,69961.0,69954.0,0.13732743]
[1730163740659,0.18124,69961.0,69957.0,0.06436]
[1730163740853,0.18124,69961.0,69951.0,0.13732743]
[1730163741454,0.0592,69961.0,69951.0,0.13732743]
[1730163741764,0.0592,69961.0,69959.0,0.064358]
[1730163742563,0.0632,69961.0,69959.0,0.064358]
[1730163742753,0.0632,69961.0,69951.0,0.13832743]
[1730163742754,0.0632,69961.0,69960.0,0.064357]
[1730163742949,0.0592,69961.0,69960.0,0.064357]
[1730163743160,0.0632,69961.0,69960.0,0.064357]
[1730163744679,0.0632,69961.0,69960.0,0.10708453]
[1730163745069,0.0592,69961.0,69960.0,0.10708453]
[1730163745365,0.129556,69961.0,69960.0,0.10808453]
[1730163746463,0.69568343,69961.0,69960.0,0.04372753]
[1730163746669,0.558356,69961.0,69960.0,0.001]
[1730163748659,0.69568343,69961.0,69949.0,0.07109484]
[1730163748863,0.064367,69950.0,69949.0,0.07109484]
[1730163749062,0.064367,69950.0,69949.0,0.17656324]
[1730163749764,0.064367,69950.0,69949.0,0.1054684]
[1730163749962,0.064367,69950.0,69945.0,0.00214461]
[1730163749963,0.12703394,69950.0,69945.0,0.09030935]
[1730163750163,0.12703394,69950.0,69943.0,0.38637528]
[1730163750164,0.10657821,69949.0,69944.0,0.13732743]
[1730163750467,0.10657821,69948.0,69944.0,0.13732743]
[1730163750669,0.10657821,69947.0,69946.0,0.06437]
[1730163752276,0.10857821,69947.0,69946.0,0.06437]
[1730163752762,0.10857821,69947.0,69946.0,0.42517]
[1730163752763,0.10757821,69947.0,69946.0,0.42517]
[1730163754071,0.1075743,69947.0,69946.0,0.42517]
[1730163754472,0.1065743,69947.0,69946.0,0.42517]
[1730163755763,0.07154276,69947.0,69946.0,0.42517]
[1730163755964,0.1065743,69947.0,69946.0,0.42517]
[1730163757159,0.064366,69951.0,69946.0,0.42517]
[1730163758177,0.064366,69951.0,69947.0,0.064369]
[1730163758377,0.068366,69951.0,69946.0,0.3608]
[1730163759672,0.068366,69951.0,69948.0,0.3608]
[1730163760778,0.068366,69951.0,69948.0,0.425168]
[1730163762677,0.064373,69943.0,69942.0,0.05711899]
[1730163762869,0.13732743,69945.0,69938.0,0.50597136]
[1730163763065,0.064375,69942.0,69940.0,0.21423271]
[1730163763267,0.064375,69942.0,69938.0,0.44961237]
[1730163763482,0.064375,69942.0,69938.0,0.51323037]
[1730163763671,0.064375,69942.0,69941.0,0.21423271]
[1730163763873,0.064375,69942.0,69939.0,0.21423271]
[1730163764180,0.064375,69942.0,69939.0,0.064376]
[1730163764368,0.064375,69942.0,69939.0,0.27803487]
[1730163764773,0.064375,69942.0,69939.0,0.064376]
[1730163765196,0.10658912,69941.0,69938.0,0.0648]
[1730163765375,0.05131522,69941.0,69940.0,0.064376]
[1730163765586,0.10658812,69941.0,69940.0,0.064376]
[1730163766172,0.10658812,69941.0,69939.0,0.005]
[1730163766369,0.17096412,69940.0,69939.0,0.005]
[1730163767777,0.10658812,69940.0,69939.0,0.005]
[1730163768079,0.06267275,69940.0,69939.0,0.20670443]
[1730163768669,0.06267275,69940.0,69939.0,0.20170443]
[1730163769581,0.06367275,69940.0,69939.0,0.20870443]
[1730163769779,0.10758812,69940.0,69939.0,0.20870443]
[1730163770885,0.10758812,69940.0,69939.0,0.071377]
[1730163771385,0.17196412,69940.0,69939.0,0.071377]
[1730163772179,0.065376,69940.0,69939.0,0.007]
[1730163778498,0.20270343,69940.0,69939.0,0.007]
[1730163783105,0.20270343,69940.0,69926.0,0.05711899]
[1730163783106,0.27565486,69940.0,69926.0,0.05711899]
[1730163783287,0.064387,69928.0,69927.0,0.05711899]
[1730163783585,0.064389,69926.0,69924.0,0.05711899]
[1730163783786,0.064389,69926.0,69924.0,0.12150899]
[1730163784383,0.064389,69926.0,69924.0,0.06439]
[1730163785405,0.13732743,69928.0,69920.0,0.0592641]
[1730163785406,0.064392,69922.0,69920.0,0.0592641]
[1730163785586,0.63545486,69921.0,69916.0,0.05711899]
[1730163785786,0.13732743,69918.0,69914.0,0.05711899]
[1730163785993,0.13732743,69918.0,69911.0,0.36152]
[1730163785994,0.064402,69912.0,69911.0,0.3608]
[1730163787298,0.18493921,69912.0,69911.0,0.3608]
[1730163788589,0.18593921,69912.0,69911.0,0.3618]
[1730163790000,0.54673921,69912.0,69911.0,0.001]
[1730163790298,0.65507914,69912.0,69911.0,0.001]
[1730163793801,0.61114121,69912.0,69911.0,0.001]
[1730163795193,0.51262837,69912.0,69911.0,0.001]
[1730163801000,0.548482,69912.0,69911.0,0.001]
[1730163802200,0.61118802,69912.0,69911.0,0.001]
[1730163809097,0.65512673,69912.0,69911.0,0.001]
[1730163810199,0.548482,69912.0,69911.0,0.001]
[1730163815118,0.663182,69912.0,69911.0,0.001]
[1730163816017,1.092302,69912.0,69911.0,0.001]
[1730163816317,0.064411,69902.0,69901.0,0.05711899]
[1730163816515,0.56253843,69902.0,69901.0,0.05711899]
[1730163816713,0.56253843,69902.0,69897.0,0.0578]
[1730163816714,0.064412,69901.0,69900.0,0.05711899]
[1730163816909,0.179812,69901.0,69900.0,0.05711899]
[1730163817415,0.064417,69895.0,69894.0,0.00214616]
[1730163817600,0.2492492,69895.0,69894.0,0.00214616]
[1730163817802,0.2492492,69895.0,69891.0,0.1698]
[1730163817803,0.06442,69892.0,69891.0,0.1698]
[1730163818014,0.13602219,69892.0,69891.0,0.1698]
[1730163818214,0.17108283,69892.0,69891.0,0.1698]
[1730163818520,0.28648283,69892.0,69891.0,0.1698]
[1730163819018,0.28748283,69892.0,69891.0,0.1698]
[1730163819906,0.43028551,69892.0,69891.0,0.1698]
[1730163820304,0.28748283,69892.0,69891.0,0.1698]
[1730163820818,0.28748759,69892.0,69891.0,0.1698]
[1730163821020,0.28648759,69892.0,69891.0,0.1698]
[1730163821325,0.28748759,69892.0,69891.0,0.234221]
[1730163823717,0.43021691,69892.0,69891.0,0.1698]
[1730163823921,0.28748759,69892.0,69891.0,0.1698]
[1730163824514,0.37776414,69892.0,69891.0,0.1698]
[1730163825115,0.52049346,69892.0,69891.0,0.1698]
[1730163825323,0.41382587,69892.0,69891.0,0.27678563]
[1730163826821,0.32354932,69892.0,69891.0,0.34821545]
[1730163827018,0.41382587,69892.0,69891.0,0.27678563]
[1730163828117,0.41382587,69892.0,69891.0,0.23621153]
[1730163828527,0.41382587,69892.0,69891.0,0.0578]
[1730163832944,0.41386587,69892.0,69891.0,0.0578]
[1730163833642,0.15569655,69892.0,69891.0,0.0578]
[1730163833838,0.15569655,69892.0,69891.0,0.122221]
[1730163834746,0.09027655,69900.0,69898.0,0.064414]
[1730163834747,0.11544,69899.0,69898.0,0.064414]
[1730163835046,0.45107655,69902.0,69901.0,0.064412]
[1730163835047,0.45219656,69902.0,69901.0,0.064412]
[1730163835238,0.45107655,69902.0,69901.0,0.064412]
[1730163836328,0.09027655,69905.0,69904.0,0.064409]
[1730163836534,0.11544,69906.0,69905.0,0.064408]
[1730163836927,0.2529692,69907.0,69905.0,0.064408]
[1730163837132,0.2529692,69907.0,69906.0,0.064407]
[1730163837616,0.3173752,69907.0,69906.0,0.064407]
[1730163838846,0.3173752,69907.0,69906.0,0.066407]
[1730163838847,0.3183752,69907.0,69906.0,0.066407]
[1730163839048,0.3183752,69907.0,69906.0,0.002]
[1730163839449,0.2029352,69907.0,69906.0,0.002]
[1730163839649,0.176046,69907.0,69906.0,0.066407]
[1730163839842,0.3135752,69907.0,69906.0,0.12354253]
[1730163840469,0.47156426,69907.0,69906.0,0.066407]
[1730163841776,0.15898906,69907.0,69906.0,0.495567]
[1730163841955,0.08349677,69907.0,69906.0,0.495567]
[1730163842256,0.04393932,69907.0,69906.0,0.495567]
[1730163842460,0.14262977,69907.0,69906.0,0.495567]
[1730163842756,0.064401,69913.0,69911.0,0.064402]
[1730163842959,0.07898128,69912.0,69911.0,0.425202]
[1730163843643,0.14257531,69912.0,69911.0,0.425202]
[1730163843851,0.22155659,69912.0,69911.0,0.425202]
[1730163844253,0.07898128,69912.0,69911.0,0.425202]
[1730163844549,0.07898128,69912.0,69911.0,0.427202]
[1730163844954,0.07898128,69912.0,69911.0,0.425202]
[1730163845163,0.07898128,69912.0,69911.0,0.427202]
[1730163845450,0.07898128,69912.0,69911.0,0.856322]
[1730163845850,0.07898128,69912.0,69911.0,1.07117103]
[1730163846059,0.00214633,69918.0,69917.0,0.064397]
[1730163846060,0.14463094,69918.0,69917.0,0.064397]
[1730163846264,0.00214633,69918.0,69917.0,0.5627262]
[1730163846457,0.00214633,69918.0,69917.0,0.77820797]
[1730163846660,0.14248461,69922.0,69921.0,0.064393]
[1730163846868,0.064388,69927.0,69921.0,0.064393]
[1730163846869,0.14248461,69923.0,69921.0,0.064393]
[1730163847163,0.14248461,69923.0,69922.0,0.0636]
[1730163847445,0.06439,69925.0,69923.0,0.064391]
[1730163847642,0.064386,69929.0,69924.0,0.06439]
[1730163847845,0.05132583,69930.0,69924.0,0.21326567]
[1730163848045,0.05132583,69930.0,69926.0,0.064388]
[1730163848546,0.05132583,69930.0,69922.0,0.0636]
[1730163848547,0.5638732,69931.0,69927.0,0.27835441]
[1730163848730,0.064386,69930.0,69927.0,0.27835441]
[1730163848933,0.078386,69930.0,69927.0,0.064387]
[1730163849333,0.078386,69930.0,69928.0,0.21431968]
[1730163849830,0.078386,69930.0,69928.0,0.27870568]
[1730163850238,0.078386,69930.0,69928.0,0.064386]
[1730163850438,0.078386,69930.0,69929.0,0.21389491]
[1730163850940,0.078386,69930.0,69929.0,0.27828091]
[1730163851131,0.014,69930.0,69929.0,0.27828091]
[1730163851460,0.4714,69938.0,69929.0,0.35142411]
[1730163851638,0.064381,69935.0,69933.0,0.064382]
[1730163851830,0.1375292,69935.0,69929.0,0.21389491]
[1730163852034,0.064384,69932.0,69930.0,0.064384]
[1730163852239,0.064384,69931.0,69930.0,0.064384]
[1730163852939,0.1375292,69935.0,69925.0,0.16300836]
[1730163853129,0.064381,69934.0,69931.0,0.064384]
[1730163853535,0.064381,69934.0,69925.0,0.16300836]
[1730163853536,0.064381,69934.0,69932.0,0.064383]
[1730163854440,0.073381,69934.0,69932.0,0.064383]
[1730163854826,0.009,69934.0,69929.0,0.1375292]
[1730163855032,0.009,69934.0,69925.0,0.02547916]
[1730163855033,0.064384,69932.0,69930.0,0.064385]
[1730163855231,0.1375292,69931.0,69927.0,0.064388]
[1730163855738,0.064386,69929.0,69928.0,0.21331311]
[1730163856043,0.06439,69925.0,69924.0,0.4226]
[1730163856239,0.17099555,69925.0,69924.0,0.48699]
[1730163856542,0.17099555,69925.0,69924.0,0.70113016]
[1730163856937,0.17099555,69925.0,69924.0,0.72661821]
[1730163858043,0.17099555,69925.0,69924.0,0.36581821]
[1730163858436,0.17099555,69925.0,69924.0,0.08987805]
[1730163859339,0.064391,69923.0,69922.0,0.127992]
[1730163859545,0.17099655,69923.0,69922.0,0.127992]
[1730163860247,0.10660555,69923.0,69922.0,0.127992]
[1730163860744,0.064393,69921.0,69920.0,0.064394]
[1730163860946,0.17099855,69921.0,69920.0,0.064394]
[1730163861443,0.22232168,69921.0,69920.0,0.064394]
[1730163861647,0.17099855,69921.0,69920.0,0.064394]
[1730163861841,0.17099855,69921.0,69920.0,0.07704895]
[1730163862043,0.22232168,69921.0,69920.0,0.07704895]
[1730163862347,0.15792868,69921.0,69920.0,0.84945333]
[1730163862537,0.18489064,69928.0,69927.0,0.064388]
[1730163862746,0.28013767,69928.0,69927.0,0.51541948]
[1730163862936,0.00214561,69937.0,69927.0,0.66451185]
[1730163863136,0.00214561,69937.0,69936.0,0.15461048]
[1730163864842,0.47256,69943.0,69940.0,0.064376]
[1730163864843,0.00116,69943.0,69940.0,0.064376]
[1730163865045,0.064361,69957.0,69954.0,0.064362]
[1730163865245,0.064361,69957.0,69956.0,0.09023148]
[1730163865541,0.1312,69964.0,69956.0,0.09023148]
[1730163865742,0.1312,69964.0,69959.0,0.09023148]
[1730163865936,0.064358,69960.0,69959.0,0.09023148]
[1730163866241,0.064355,69963.0,69962.0,0.064355]
[1730163866447,0.064355,69963.0,69962.0,0.20176679]
[1730163867436,0.064355,69963.0,69962.0,0.13741179]
[1730163867945,0.1312,69964.0,69958.0,0.20177079]
[1730163867946,0.064356,69962.0,69958.0,0.20177079]
[1730163868446,0.064356,69962.0,69959.0,0.064358]
[1730163869034,0.13741179,69962.0,69956.0,0.3608]
[1730163869235,0.49821179,69957.0,69949.0,0.3608]
[1730163869447,0.20177879,69950.0,69949.0,0.3608]
[1730163870347,0.064367,69950.0,69949.0,0.3608]
[1730163870946,0.25732804,69950.0,69945.0,0.064371]
[1730163871244,0.25732804,69950.0,69941.0,0.30072797]
[1730163871245,0.32637283,69949.0,69941.0,0.30072797]
[1730163871442,0.3608,69943.0,69940.0,0.064375]
[1730163871748,0.18896104,69942.0,69941.0,0.27891893]
[1730163871954,0.18896104,69942.0,69941.0,0.14771775]
[1730163872143,0.26766468,69942.0,69936.0,0.21454393]
[1730163872346,0.064377,69939.0,69936.0,0.064379]
[1730163872542,0.13025289,69938.0,69936.0,0.064379]
[1730163872748,0.13025289,69937.0,69936.0,0.064379]
[1730163873453,0.13025289,69937.0,69934.0,0.3608]
[1730163873652,0.19463289,69936.0,69934.0,0.3608]
[1730163873839,0.13025289,69935.0,69934.0,0.3608]
[1730163874040,0.49105289,69935.0,69931.0,0.064383]
[1730163874247,0.49105289,69935.0,69928.0,0.13741179]
[1730163874248,0.13025289,69934.0,69933.0,0.064382]
[1730163875152,0.13026811,69934.0,69933.0,0.064382]
[1730163876753,0.13226811,69934.0,69933.0,0.064382]
[1730163877452,0.13126811,69934.0,69933.0,0.064382]
[1730163877855,0.001,69934.0,69933.0,0.064382]
[1730163879850,0.001,69934.0,69933.0,0.20179379]
[1730163880650,0.001,69934.0,69933.0,0.88727504]
[1730163880965,0.3608,69943.0,69942.0,0.064374]
[1730163881163,0.3608,69943.0,69942.0,0.20178579]
[1730163882166,0.3608,69943.0,69942.0,0.064374]
[1730163882465,0.3608,69943.0,69942.0,0.20178579]
[1730163882651,0.3608,69943.0,69942.0,0.064374]
[1730163883863,0.3608,69943.0,69942.0,0.066374]
[1730163884165,0.3608,69943.0,69942.0,0.20378579]
[1730163884570,0.3608,69950.0,69949.0,0.064367]
[1730163886174,0.0665,69971.0,69949.0,0.064367]
[1730163886175,0.00116,69960.0,69956.0,0.064361]
[1730163886370,0.1285,69975.0,69959.0,0.63562358]
[1730163886555,0.1285,69975.0,69974.0,0.20175579]
[1730163887353,0.02632265,69983.0,69974.0,0.20175579]
[1730163887559,0.06434,69979.0,69977.0,0.064341]
[1730163888560,0.49821179,69984.0,69974.0,0.13841179]
[1730163888763,0.49821179,69984.0,69980.0,0.064339]
[1730163888764,0.064336,69983.0,69980.0,0.064339]
[1730163889070,0.064336,69983.0,69974.0,0.13841179]
[1730163889266,0.064336,69983.0,69982.0,0.064337]
[1730163890569,0.064336,69983.0,69982.0,0.065337]
[1730163890570,0.005,69983.0,69982.0,0.065337]
[1730163891767,0.069336,69983.0,69982.0,0.065337]
[1730163892270,0.069336,69983.0,69982.0,0.001]
[1730163892858,0.25996079,69983.0,69975.0,0.064343]
[1730163893062,0.064342,69978.0,69975.0,0.064343]
[1730163893258,0.31930281,69977.0,69975.0,0.064343]
[1730163893470,0.25496081,69976.0,69975.0,0.064343]
[1730163893862,0.25496081,69976.0,69970.0,0.13741179]
[1730163894068,0.25496081,69975.0,69970.0,0.13741179]
[1730163894265,0.25496081,69974.0,69973.0,0.064345]
[1730163894662,0.18888177,69974.0,69973.0,0.064345]
[1730163896965,0.19488177,69974.0,69973.0,0.065345]
[1730163899074,0.19488177,69974.0,69973.0,0.20175679]
[1730163899983,0.006,69974.0,69973.0,0.20175679]
[1730163900773,0.006,69974.0,69973.0,0.064345]
[1730163901678,0.070344,69974.0,69973.0,0.064345]
[1730163902179,0.006,69974.0,69973.0,0.20175679]
[1730163903177,0.006,69974.0,69973.0,0.22218922]
[1730163903772,0.006,69974.0,69973.0,0.08477743]
[1730163903982,0.006,69974.0,69973.0,0.064345]
[1730163906278,0.425139,69980.0,69971.0,0.49893179]
[1730163906468,0.425139,69980.0,69977.0,0.064342]
[1730163907477,0.425139,69980.0,69978.0,0.064341]
[1730163907682,0.430139,69980.0,69975.0,0.13741179]
[1730163907980,0.430139,69980.0,69972.0,0.064346]
[1730163907981,0.09517653,69979.0,69972.0,0.064346]
[1730163908180,0.09517653,69978.0,69977.0,0.064342]
[1730163909080,0.09517653,69978.0,69977.0,0.20175379]
[1730163909972,0.09817653,69978.0,69977.0,0.20175379]
[1730163911877,0.15685713,69978.0,69977.0,0.20175379]
[1730163913082,0.15685713,69978.0,69977.0,0.18157842]
[1730163913280,0.15685713,69978.0,69977.0,0.20218059]
[1730163913877,0.15685713,69978.0,69977.0,0.06355515]
[1730163914484,0.15685713,69978.0,69977.0,0.12789715]
[1730163915084,0.003,69978.0,69977.0,0.12789715]
[1730163916082,0.003,69978.0,69977.0,0.55661715]
[1730163916292,0.003,69978.0,69977.0,0.76960803]
[1730163917682,0.003,69978.0,69977.0,0.90701982]
[1730163917877,0.003,69978.0,69977.0,0.86406684]
[1730163918185,0.003,69978.0,69977.0,1.00147863]
[1730163918375,0.003,69978.0,69977.0,0.86406684]
[1730163918570,0.003,69978.0,69977.0,0.92996684]
[1730163919186,0.003,69978.0,69977.0,1.06737863]
[1730163919385,0.003,69978.0,69977.0,0.92996684]
[1730163919583,0.00214361,69989.0,69977.0,0.92996684]
[1730163919786,0.001,69978.0,69977.0,0.37283505]
[1730163920192,0.001,69978.0,69977.0,0.80155505]
[1730163920487,0.064321,70000.0,69977.0,0.80155505]
[1730163920488,0.3608,70012.0,69992.0,0.064327]
[1730163920689,0.3608,70012.0,70007.0,0.064314]
[1730163920690,0.064312,70010.0,70007.0,0.064314]
[1730163920882,0.0438739,70009.0,70007.0,0.064314]
[1730163921085,0.064312,70010.0,70007.0,0.064314]
[1730163921388,0.1277,70011.0,70008.0,0.064313]
[1730163921980,0.1277,70011.0,70009.0,0.13741179]
[1730163923084,0.0718,70011.0,70010.0,0.064311]
[1730163923678,0.008,70011.0,70010.0,0.21548526]
[1730163923994,0.008,70011.0,70010.0,0.27979626]
[1730163924179,0.008,70011.0,70010.0,0.70831626]
[1730163924488,0.3608,70021.0,70011.0,0.06431]
[1730163924689,0.3608,70021.0,70018.0,0.20171579]
[1730163925291,0.3608,70021.0,70019.0,0.064302]
[1730163925489,0.3608,70021.0,70018.0,0.13741179]
[1730163925788,0.3608,70021.0,70020.0,0.064302]
[1730163925985,0.3688,70021.0,70020.0,0.064302]
[1730163926780,0.3688,70021.0,70018.0,0.001]
[1730163926781,0.433102,70021.0,70018.0,0.001]
[1730163926979,0.425102,70021.0,70016.0,0.064306]
[1730163927180,0.433102,70021.0,70020.0,0.001]
[1730163927485,0.50621179,70021.0,70016.0,0.21334385]
[1730163927689,0.50621179,70021.0,70012.0,0.064309]
[1730163927985,0.064305,70017.0,70013.0,0.27718028]
[1730163928185,0.064305,70017.0,70013.0,0.064309]
[1730163928591,0.36956,70021.0,70014.0,0.27975801]
[1730163928784,0.433101,70021.0,70014.0,0.27975801]
[1730163929178,0.434101,70021.0,70014.0,0.21545001]
[1730163929382,0.434101,70021.0,70018.0,0.064304]
[1730163929584,0.3698,70021.0,70018.0,0.064304]
[1730163929782,0.3698,70021.0,70019.0,0.21399046]
[1730163929978,0.09512371,70020.0,70019.0,0.15961804]
[1730163930494,0.09512371,70020.0,70019.0,0.22392104]
[1730163931298,0.15942571,70020.0,70019.0,0.15961804]
[1730163931483,0.15942571,70020.0,70019.0,0.05901804]
[1730163932085,0.16742571,70020.0,70019.0,0.06001804]
[1730163936789,0.16742571,70020.0,70007.0,0.064313]
[1730163936790,0.064312,70010.0,70007.0,0.064313]
[1730163936989,0.10506629,70009.0,70004.0,0.02268146]
[1730163937192,0.064315,70006.0,70005.0,0.21535842]
[1730163937391,0.064316,70005.0,70004.0,0.00214248]
[1730163937597,0.17058229,70005.0,70004.0,0.00214248]
[1730163937999,0.126716,70005.0,70004.0,0.00214248]
[1730163940000,0.133716,70005.0,70004.0,0.00314248]
[1730163940595,0.133716,70005.0,70004.0,0.001]
[1730163942897,0.0694,70005.0,70004.0,0.065317]
[1730163943300,0.0694,70005.0,70004.0,0.08572008]
[1730163944900,0.007,70005.0,70004.0,0.08572008]
[1730163945101,0.05087278,70005.0,70004.0,0.08572008]
[1730163946698,0.11518878,70005.0,70004.0,0.001]
[1730163947910,0.16645345,70005.0,70004.0,0.001]
[1730163948294,0.11518878,70005.0,70004.0,0.001]
[1730163949211,0.16645345,70005.0,70004.0,0.001]
[1730163951604,0.10213745,70005.0,70004.0,0.065317]
[1730163952304,0.10213745,70005.0,70004.0,0.001]
[1730163952502,0.12258067,70005.0,70004.0,0.001]
[1730163955602,0.071316,70005.0,70004.0,0.001]
[1730163961720,0.183116,70005.0,70004.0,0.001]
[1730163962019,0.611676,70005.0,70004.0,0.001]
[1730163964816,0.74908779,70005.0,70001.0,0.04266825]
[1730163965016,0.064324,69996.0,69995.0,0.056891]
[1730163965209,0.56253579,69996.0,69995.0,0.056891]
[1730163965519,0.064332,69988.0,69987.0,0.07111375]
[1730163965711,0.71823402,69988.0,69985.0,0.0021427]
[1730163965912,0.425133,69986.0,69985.0,0.0021427]
[1730163966115,0.52030862,69986.0,69985.0,0.0021427]
[1730163966813,0.064343,69976.0,69975.0,0.064344]
[1730163967019,0.46903323,69976.0,69975.0,0.064344]
[1730163967220,0.469037,69976.0,69975.0,0.064344]
[1730163967914,0.425143,69976.0,69975.0,0.064344]
[1730163969211,0.425143,69976.0,69970.0,0.13741179]
[1730163969212,0.064346,69972.0,69967.0,0.08812801]
[1730163969411,0.064346,69972.0,69971.0,0.064347]
[1730163969612,0.064346,69972.0,69971.0,0.27766449]
[1730163969924,0.064346,69972.0,69971.0,0.064347]
[1730163971314,0.065346,69972.0,69971.0,0.064347]
[1730163971927,0.065346,69972.0,69971.0,0.014]
[1730163975017,0.32602047,69976.0,69971.0,0.12298508]
[1730163975213,0.064344,69975.0,69973.0,0.07098592]
[1730163975413,0.064344,69975.0,69974.0,0.07098592]
[1730163975616,0.064344,69975.0,69974.0,0.17996867]
[1730163975824,0.064344,69975.0,69974.0,0.10898275]
[1730163976027,0.064344,69975.0,69974.0,0.17996995]
[1730163976230,0.32602047,69976.0,69974.0,0.17996995]
[1730163976231,0.32602047,69976.0,69974.0,0.24639454]
[1730163976412,0.3608,69984.0,69983.0,0.064336]
[1730163976618,0.3608,69984.0,69983.0,0.38170524]
[1730163976817,0.3608,69984.0,69983.0,0.31071879]
[1730163976818,0.31787103,69984.0,69983.0,0.31071879]
[1730163977634,0.064285,70039.0,69989.0,0.064331]
[1730163977635,0.3608,69990.0,69989.0,0.064331]
[1730163977818,0.3608,69990.0,69989.0,0.3816748]
[1730163978124,0.064323,69997.0,69989.0,0.3816748]
[1730163978125,0.064323,69997.0,69989.0,0.24637294]
[1730163978323,0.064324,69996.0,69994.0,0.070967]
[1730163978516,0.3608,69998.0,69994.0,0.070967]
[1730163978517,0.3608,69998.0,69997.0,0.064323]
[1730163978717,0.425122,69998.0,69997.0,0.17990851]
[1730163979021,0.425122,69998.0,69993.0,0.064327]
[1730163979022,0.064323,69997.0,69996.0,0.07096073]
[1730163980026,0.064323,69997.0,69996.0,0.17991152]
[1730163980221,0.064323,69997.0,69996.0,0.17991119]
[1730163980422,0.064323,69997.0,69996.0,0.1799122]
[1730163981031,0.064323,69997.0,69996.0,0.10894579]
[1730163983021,0.10820503,69997.0,69994.0,0.065326]
[1730163983222,0.04388203,69996.0,69994.0,0.065326]
[1730163983526,0.10820703,69995.0,69994.0,0.065326]
[1730163983721,0.10820703,69995.0,69994.0,0.001]
[1730163984627,0.24561882,69995.0,69994.0,0.001]
[1730163984826,0.18129382,69995.0,69991.0,0.064328]
[1730163985014,0.064327,69993.0,69991.0,0.064328]
[1730163985432,0.04388227,69992.0,69991.0,0.064328]
[1730163985918,0.064327,69993.0,69991.0,0.064328]
[1730163986124,0.064327,69993.0,69991.0,0.068328]
[1730163987623,0.064327,69993.0,69991.0,0.064328]
[1730163987830,0.064327,69993.0,69991.0,0.069328]
[1730163988430,0.064327,69993.0,69991.0,0.068328]
[1730163989930,0.46900987,69992.0,69991.0,0.004]
[1730163990137,0.425128,69992.0,69991.0,0.004]
[1730163991637,0.064332,69988.0,69984.0,0.0644]
[1730163991836,0.3608,69992.0,69984.0,0.0644]
[1730163991837,0.13741179,69990.0,69984.0,0.0644]
[1730163992033,0.064333,69987.0,69985.0,0.21313812]
[1730163992337,0.13741179,69990.0,69985.0,0.21313812]
[1730163992338,0.064333,69986.0,69985.0,0.21313812]
[1730163992928,0.064333,69986.0,69984.0,0.27737039]
[1730163993136,0.13741179,69986.0,69983.0,0.21303539]
[1730163993332,0.064336,69983.0,69982.0,0.00214337]
[1730163993530,0.064333,69987.0,69984.0,0.064335]
[1730163993923,0.064333,69987.0,69985.0,0.21322185]
[1730163994830,0.001,69986.0,69985.0,0.22722185]
[1730163995225,0.065333,69986.0,69985.0,0.22722185]
[1730163995430,0.20174479,69986.0,69985.0,0.014]
[1730163995943,0.13741179,69986.0,69982.0,0.00214337]
[1730163996133,0.064336,69983.0,69982.0,0.00214337]
[1730163997741,0.064333,69987.0,69984.0,0.064335]
[1730163999235,0.064334,69985.0,69984.0,0.014]
[1730164000143,0.001,69987.0,69984.0,0.078334]
[1730164000441,0.065333,69987.0,69984.0,0.078334]
[1730164000929,0.001,69985.0,69984.0,0.078334]
[1730164001532,0.064334,69986.0,69985.0,0.064334]
[1730164002339,0.0617,69991.0,69984.0,0.014]
[1730164002535,0.0617,69991.0,69989.0,0.06433]
[1730164002845,0.0617,69991.0,69984.0,0.014]
[1730164003046,0.064333,69987.0,69986.0,0.064333]
[1730164003338,0.0617,69991.0,69984.0,0.014]
[1730164003541,0.126029,69991.0,69988.0,0.064331]
[1730164003749,0.06433,69990.0,69988.0,0.064331]
[1730164004343,0.06433,69990.0,69985.0,0.014]
[1730164004539,0.06433,69990.0,69989.0,0.064331]
[1730164005342,0.06533,69990.0,69989.0,0.064331]
[1730164005848,0.06533,69990.0,69989.0,0.071331]
[1730164006248,0.001,69990.0,69989.0,0.071331]
[1730164007939,0.001,69990.0,69989.0,0.1425583]
[1730164008846,0.001,69990.0,69989.0,0.071331]
[1730164009046,0.001,69990.0,69989.0,0.1425583]
[1730164010045,0.001,69990.0,69989.0,0.16804931]
[1730164010441,0.001,69990.0,69989.0,0.09682201]
[1730164013156,0.001,69990.0,69989.0,0.20577127]
[1730164013647,0.13841179,69990.0,69989.0,0.18028026]
[1730164014754,0.20274179,69990.0,69989.0,0.18028026]
[1730164015763,0.001,69990.0,69989.0,0.26561676]
[1730164017253,0.001,69990.0,69989.0,0.18028026]
[1730164017757,0.001,69990.0,69989.0,0.26561676]
[1730164017958,0.001,69990.0,69989.0,0.39320178]
[1730164018159,0.001,69990.0,69989.0,0.52580305]
[1730164018360,0.3608,69998.0,69997.0,0.20173479]
[1730164018563,0.064321,70000.0,69997.0,0.17326842]
[1730164018764,0.064321,70000.0,69998.0,0.10894542]
[1730164019067,0.3608,70001.0,69999.0,0.17326642]
[1730164019265,0.3608,70001.0,70000.0,0.24451138]
[1730164019461,0.3608,70001.0,70000.0,0.24450552]
[1730164020264,0.40967984,70001.0,70000.0,0.064321]
[1730164021566,0.40967987,70001.0,70000.0,0.064321]
[1730164022164,0.55049274,70001.0,70000.0,0.064321]
[1730164023166,0.61481274,70001.0,70000.0,0.064321]
[1730164023463,0.47199987,70001.0,70000.0,0.064321]
[1730164023960,0.61481274,70001.0,70000.0,0.064321]
[1730164024359,0.47199987,70001.0,70000.0,0.064321]
[1730164026282,0.47199901,70001.0,70000.0,0.064321]
[1730164026572,0.11119901,70001.0,70000.0,0.064321]
[1730164027962,0.29923063,70004.0,70000.0,1.14099308]